Workbook

Sheet Weibull
N1: Normal | O1: Wind
B2: Average | C2: 3 | E2: Match | F2: =MATCH(0.49,G:G) -> 25 | N2: 3 | O2: 3
B3: Std Dev | C3: 1 | E3: Match | F3: =MATCH(0.51,G:G) -> 26 | N3: 1 | O3: 1
B4: Alpha | C4: 1 | E4: Index | F4: =INDEX(B:B,F2) -> 1.6 | N4: 3 | O4: 2
B5: Gamma | C5: 0.89 | E5: Index | F5: =INDEX(B:B,F3) -> 1.7 | N5: 1.09 | O5: 0.89
B6: Beta | C6: =C5*C2 -> 2.67 | E6: Average | F6: =AVERAGE(F4:F5) -> 1.65 | N6: =N5*N2 -> 3.27 | O6: =O5*O2 -> 2.67
C8: Value - Avg
B9: Value | D9: NORMDIST | E9: Weibull | F9: Normalised | G9: Accumulated | H9: Value
B10: 0.1 | C10: =(B10-$F$6) -> -1.55 | D10: =NORMDIST(B10,$C$2,$C$3,0)/10 -> 0.000595253242 | E10: =_xlfn.WEIBULL.DIST(B10,$C$4,$C$6,0)/10 -> 0.03607638622 | F10: =E10/$E$269 -> 0.03893775206 | G10: =F10 -> 0.03893775206 | H10: =B10-$F$6 -> -1.55
B11: =B10+0.1 -> 0.2 | C11: =(B11-$C$2) -> -2.8 | D11: =NORMDIST(B11,$C$2,$C$3,0)/10 -> 0.0007915451583 | E11: =_xlfn.WEIBULL.DIST(B11,$C$4,$C$6,0)/10 -> 0.03475020067 | F11: =E11/$E$269 -> 0.0375063813 | G11: =G10+F11 -> 0.07644413336 | H11: =B11-$F$6 -> -1.45
B12: 0.3 | C12: =(B12-$C$2) -> -2.7 | D12: =NORMDIST(B12,$C$2,$C$3,0)/10 -> 0.001042093481 | E12: =_xlfn.WEIBULL.DIST(B12,$C$4,$C$6,0)/10 -> 0.03347276634 | F12: 0.03612762843 | G12: =G11+F12 -> 0.1125717618 | H12: -1.35
B13: 0.4 | C13: =(B13-$C$2) -> -2.6 | D13: =NORMDIST(B13,$C$2,$C$3,0)/10 -> 0.001358296923 | E13: =_xlfn.WEIBULL.DIST(B13,$C$4,$C$6,0)/10 -> 0.03224229112 | F13: 0.03479955918 | G13: 0.147371321 | H13: -1.25
B14: 0.5 | C14: =(B14-$C$2) -> -2.5 | D14: =NORMDIST(B14,$C$2,$C$3,0)/10 -> 0.001752830049 | E14: =_xlfn.WEIBULL.DIST(B14,$C$4,$C$6,0)/10 -> 0.03105704876 | F14: 0.03352031041 | G14: 0.1808916314 | H14: -1.15
B15: 0.6 | C15: =(B15-$C$2) -> -2.4 | D15: =NORMDIST(B15,$C$2,$C$3,0)/10 -> 0.002239453029 | E15: =_xlfn.WEIBULL.DIST(B15,$C$4,$C$6,0)/10 -> 0.0299153765 | F15: 0.03228808744 | G15: 0.2131797188 | H15: -1.05
B16: 0.7 | C16: =(B16-$C$2) -> -2.3 | D16: =NORMDIST(B16,$C$2,$C$3,0)/10 -> 0.002832703774 | E16: =_xlfn.WEIBULL.DIST(B16,$C$4,$C$6,0)/10 -> 0.02881567267 | F16: 0.0311011616 | G16: 0.2442808804 | H16: -0.95
B17: 0.8 | C17: =(B17-$C$2) -> -2.2 | D17: =NORMDIST(B17,$C$2,$C$3,0)/10 -> 0.003547459285 | E17: =_xlfn.WEIBULL.DIST(B17,$C$4,$C$6,0)/10 -> 0.02775639448 | F17: 0.02995786772 | G17: 0.2742387481 | H17: -0.85
B18: 0.9 | C18: =(B18-$C$2) -> -2.1 | D18: =NORMDIST(B18,$C$2,$C$3,0)/10 -> 0.004398359598 | E18: =_xlfn.WEIBULL.DIST(B18,$C$4,$C$6,0)/10 -> 0.02673605588 | F18: 0.02885660189 | G18: 0.30309535 | H18: -0.75
B19: 1 | C19: =(B19-$C$2) -> -2 | D19: =NORMDIST(B19,$C$2,$C$3,0)/10 -> 0.005399096651 | E19: =_xlfn.WEIBULL.DIST(B19,$C$4,$C$6,0)/10 -> 0.02575322542 | F19: 0.02779581913 | G19: 0.3308911692 | H19: -0.65
B20: 1.1 | C20: =(B20-$C$2) -> -1.9 | D20: =NORMDIST(B20,$C$2,$C$3,0)/10 -> 0.006561581477 | E20: =_xlfn.WEIBULL.DIST(B20,$C$4,$C$6,0)/10 -> 0.02480652429 | F20: 0.02677403126 | G20: 0.3576652004 | H20: -0.55
B21: 1.2 | C21: =(B21-$C$2) -> -1.8 | D21: =NORMDIST(B21,$C$2,$C$3,0)/10 -> 0.00789501583 | E21: =_xlfn.WEIBULL.DIST(B21,$C$4,$C$6,0)/10 -> 0.02389462436 | F21: 0.02578980481 | G21: 0.3834550052 | H21: -0.45
B22: 1.3 | C22: =(B22-$C$2) -> -1.7 | D22: =NORMDIST(B22,$C$2,$C$3,0)/10 -> 0.009404907738 | E22: =_xlfn.WEIBULL.DIST(B22,$C$4,$C$6,0)/10 -> 0.02301624631 | F22: 0.024841759 | G22: 0.4082967642 | H22: -0.35 | J22: Rand | K22: =RAND() -> 0.1795748922 | L22: =_xlfn.FORMULATEXT(K22) -> =RAND()
B23: 1.4 | C23: =(B23-$C$2) -> -1.6 | D23: =NORMDIST(B23,$C$2,$C$3,0)/10 -> 0.01109208347 | E23: =_xlfn.WEIBULL.DIST(B23,$C$4,$C$6,0)/10 -> 0.02217015787 | F23: 0.02392856382 | G23: 0.432225328 | H23: -0.25 | J23: Lookup | K23: =LOOKUP(K22,G:G,H:H) -> -1.25 | L23: =_xlfn.FORMULATEXT(K23) -> =LOOKUP(K22,G:G,H:H)
B24: 1.5 | C24: =(B24-$C$2) -> -1.5 | D24: =NORMDIST(B24,$C$2,$C$3,0)/10 -> 0.01295175957 | E24: =_xlfn.WEIBULL.DIST(B24,$C$4,$C$6,0)/10 -> 0.02135517205 | F24: 0.02304893814 | G24: 0.4552742662 | H24: -0.15
B25: 1.6 | C25: =(B25-$C$2) -> -1.4 | D25: =NORMDIST(B25,$C$2,$C$3,0)/10 -> 0.01497274656 | E25: =_xlfn.WEIBULL.DIST(B25,$C$4,$C$6,0)/10 -> 0.0205701455 | F25: 0.02220164793 | G25: 0.4774759141 | H25: -0.05
B26: 1.7 | C26: =(B26-$C$2) -> -1.3 | D26: =NORMDIST(B26,$C$2,$C$3,0)/10 -> 0.0171368592 | E26: =_xlfn.WEIBULL.DIST(B26,$C$4,$C$6,0)/10 -> 0.01981397692 | F26: 0.02138550452 | G26: 0.4988614186 | H26: 0.05
B27: 1.8 | C27: =(B27-$C$2) -> -1.2 | D27: =NORMDIST(B27,$C$2,$C$3,0)/10 -> 0.0194186055 | E27: =_xlfn.WEIBULL.DIST(B27,$C$4,$C$6,0)/10 -> 0.01908560546 | F27: 0.02059936294 | G27: 0.5194607816 | H27: 0.15
B28: 1.9 | C28: =(B28-$C$2) -> -1.1 | D28: =NORMDIST(B28,$C$2,$C$3,0)/10 -> 0.0217852177 | E28: =_xlfn.WEIBULL.DIST(B28,$C$4,$C$6,0)/10 -> 0.01838400929 | F28: 0.01984212031 | G28: 0.5393029019 | H28: 0.25
B29: 2 | C29: =(B29-$C$2) -> -1 | D29: =NORMDIST(B29,$C$2,$C$3,0)/10 -> 0.02419707245 | E29: =_xlfn.WEIBULL.DIST(B29,$C$4,$C$6,0)/10 -> 0.01770820414 | F29: 0.01911271429 | G29: 0.5584156162 | H29: 0.35
B30: 2.1 | C30: =(B30-$C$2) -> -0.9 | D30: =NORMDIST(B30,$C$2,$C$3,0)/10 -> 0.02660852499 | E30: =_xlfn.WEIBULL.DIST(B30,$C$4,$C$6,0)/10 -> 0.01705724192 | F30: 0.01841012159 | G30: 0.5768257378 | H30: 0.45
B31: 2.2 | C31: =(B31-$C$2) -> -0.8 | D31: =NORMDIST(B31,$C$2,$C$3,0)/10 -> 0.02896915528 | E31: =_xlfn.WEIBULL.DIST(B31,$C$4,$C$6,0)/10 -> 0.01643020939 | F31: 0.01773335654 | G31: 0.5945590943 | H31: 0.55
B32: 2.3 | C32: =(B32-$C$2) -> -0.7 | D32: =NORMDIST(B32,$C$2,$C$3,0)/10 -> 0.03122539334 | E32: =_xlfn.WEIBULL.DIST(B32,$C$4,$C$6,0)/10 -> 0.01582622687 | F32: 0.0170814697 | G32: 0.611640564 | H32: 0.65
B33: 2.4 | C33: =(B33-$C$2) -> -0.6 | D33: =NORMDIST(B33,$C$2,$C$3,0)/10 -> 0.03332246029 | E33: =_xlfn.WEIBULL.DIST(B33,$C$4,$C$6,0)/10 -> 0.01524444705 | F33: 0.01645354654 | G33: 0.6280941105 | H33: 0.75
B34: 2.5 | C34: =(B34-$C$2) -> -0.5 | D34: =NORMDIST(B34,$C$2,$C$3,0)/10 -> 0.03520653268 | E34: =_xlfn.WEIBULL.DIST(B34,$C$4,$C$6,0)/10 -> 0.01468405374 | F34: 0.01584870614 | G34: 0.6439428167 | H34: 0.85
B35: 2.6 | C35: =(B35-$C$2) -> -0.4 | D35: =NORMDIST(B35,$C$2,$C$3,0)/10 -> 0.03682701403 | E35: =_xlfn.WEIBULL.DIST(B35,$C$4,$C$6,0)/10 -> 0.01414426076 | F35: 0.01526609997 | G35: 0.6592089166 | H35: 0.95
B36: 2.7 | C36: =(B36-$C$2) -> -0.3 | D36: =NORMDIST(B36,$C$2,$C$3,0)/10 -> 0.03813878155 | E36: =_xlfn.WEIBULL.DIST(B36,$C$4,$C$6,0)/10 -> 0.01362431084 | F36: 0.01470491069 | G36: 0.6739138273 | H36: 1.05
B37: 2.8 | C37: =(B37-$C$2) -> -0.2 | D37: =NORMDIST(B37,$C$2,$C$3,0)/10 -> 0.0391042694 | E37: =_xlfn.WEIBULL.DIST(B37,$C$4,$C$6,0)/10 -> 0.01312347452 | F37: 0.014164351 | G37: 0.6880781783 | H37: 1.15
B38: 2.9 | C38: =(B38-$C$2) -> -0.1 | D38: =NORMDIST(B38,$C$2,$C$3,0)/10 -> 0.03969525475 | E38: =_xlfn.WEIBULL.DIST(B38,$C$4,$C$6,0)/10 -> 0.0126410492 | F38: 0.01364366255 | G38: 0.7017218409 | H38: 1.25
B39: 3 | C39: =(B39-$C$2) -> 1.33226763e-15 | D39: =NORMDIST(B39,$C$2,$C$3,0)/10 -> 0.03989422804 | E39: =_xlfn.WEIBULL.DIST(B39,$C$4,$C$6,0)/10 -> 0.01217635806 | F39: 0.01314211485 | G39: 0.7148639557 | H39: 1.35
B40: 3.1 | C40: =(B40-$C$2) -> 0.1 | D40: =NORMDIST(B40,$C$2,$C$3,0)/10 -> 0.03969525475 | E40: =_xlfn.WEIBULL.DIST(B40,$C$4,$C$6,0)/10 -> 0.0117287492 | F40: 0.0126590043 | G40: 0.72752296 | H40: 1.45
B41: 3.2 | C41: =(B41-$C$2) -> 0.2 | D41: =NORMDIST(B41,$C$2,$C$3,0)/10 -> 0.0391042694 | E41: =_xlfn.WEIBULL.DIST(B41,$C$4,$C$6,0)/10 -> 0.01129759466 | F41: 0.01219365313 | G41: 0.7397166132 | H41: 1.55
B42: 3.3 | C42: =(B42-$C$2) -> 0.3 | D42: =NORMDIST(B42,$C$2,$C$3,0)/10 -> 0.03813878155 | E42: =_xlfn.WEIBULL.DIST(B42,$C$4,$C$6,0)/10 -> 0.01088228957 | F42: 0.01174540849 | G42: 0.7514620217 | H42: 1.65
B43: =B42+0.1 -> 3.4 | C43: =(B43-$C$2) -> 0.4 | D43: =NORMDIST(B43,$C$2,$C$3,0)/10 -> 0.03682701403 | E43: =_xlfn.WEIBULL.DIST(B43,$C$4,$C$6,0)/10 -> 0.01048225129 | F43: 0.01131364154 | G43: 0.7627756632 | H43: 1.75
B44: 3.5 | C44: =(B44-$C$2) -> 0.5 | D44: =NORMDIST(B44,$C$2,$C$3,0)/10 -> 0.03520653268 | E44: =_xlfn.WEIBULL.DIST(B44,$C$4,$C$6,0)/10 -> 0.01009691862 | F44: 0.01089774656 | G44: 0.7736734098 | H44: 1.85
B45: 3.6 | C45: =(B45-$C$2) -> 0.6 | D45: =NORMDIST(B45,$C$2,$C$3,0)/10 -> 0.03332246029 | E45: =_xlfn.WEIBULL.DIST(B45,$C$4,$C$6,0)/10 -> 0.009725750968 | F45: 0.01049714008 | G45: 0.7841705498 | H45: 1.95
B46: 3.7 | C46: =(B46-$C$2) -> 0.7 | D46: =NORMDIST(B46,$C$2,$C$3,0)/10 -> 0.03122539334 | E46: =_xlfn.WEIBULL.DIST(B46,$C$4,$C$6,0)/10 -> 0.009368227617 | F46: 0.01011126009 | G46: 0.7942818099 | H46: 2.05
B47: 3.8 | C47: =(B47-$C$2) -> 0.8 | D47: =NORMDIST(B47,$C$2,$C$3,0)/10 -> 0.02896915528 | E47: =_xlfn.WEIBULL.DIST(B47,$C$4,$C$6,0)/10 -> 0.009023847 | F47: 0.009739565237 | G47: 0.8040213752 | H47: 2.15
B48: 3.9 | C48: =(B48-$C$2) -> 0.9 | D48: =NORMDIST(B48,$C$2,$C$3,0)/10 -> 0.02660852499 | E48: =_xlfn.WEIBULL.DIST(B48,$C$4,$C$6,0)/10 -> 0.008692125982 | F48: 0.009381534067 | G48: 0.8134029092 | H48: 2.25
B49: 4 | C49: =(B49-$C$2) -> 1 | D49: =NORMDIST(B49,$C$2,$C$3,0)/10 -> 0.02419707245 | E49: =_xlfn.WEIBULL.DIST(B49,$C$4,$C$6,0)/10 -> 0.00837259919 | F49: 0.009036664298 | G49: 0.8224395735 | H49: 2.35
B50: 4.1 | C50: =(B50-$C$2) -> 1.1 | D50: =NORMDIST(B50,$C$2,$C$3,0)/10 -> 0.0217852177 | E50: =_xlfn.WEIBULL.DIST(B50,$C$4,$C$6,0)/10 -> 0.008064818359 | F50: 0.00870447211 | G50: 0.8311440456 | H50: 2.45
B51: 4.2 | C51: =(B51-$C$2) -> 1.2 | D51: =NORMDIST(B51,$C$2,$C$3,0)/10 -> 0.0194186055 | E51: =_xlfn.WEIBULL.DIST(B51,$C$4,$C$6,0)/10 -> 0.007768351702 | F51: 0.008384491468 | G51: 0.8395285371 | H51: 2.55
B52: 4.3 | C52: =(B52-$C$2) -> 1.3 | D52: =NORMDIST(B52,$C$2,$C$3,0)/10 -> 0.0171368592 | E52: =_xlfn.WEIBULL.DIST(B52,$C$4,$C$6,0)/10 -> 0.007482783304 | F52: 0.008076273472 | G52: 0.8476048106 | H52: 2.65
B53: 4.4 | C53: =(B53-$C$2) -> 1.4 | D53: =NORMDIST(B53,$C$2,$C$3,0)/10 -> 0.01497274656 | E53: =_xlfn.WEIBULL.DIST(B53,$C$4,$C$6,0)/10 -> 0.007207712539 | F53: 0.007779385719 | G53: 0.8553841963 | H53: 2.75
B54: 4.5 | C54: =(B54-$C$2) -> 1.5 | D54: =NORMDIST(B54,$C$2,$C$3,0)/10 -> 0.01295175957 | E54: =_xlfn.WEIBULL.DIST(B54,$C$4,$C$6,0)/10 -> 0.00694275351 | F54: 0.007493411705 | G54: 0.862877608 | H54: 2.85
B55: 4.6 | C55: =(B55-$C$2) -> 1.6 | D55: =NORMDIST(B55,$C$2,$C$3,0)/10 -> 0.01109208347 | E55: =_xlfn.WEIBULL.DIST(B55,$C$4,$C$6,0)/10 -> 0.006687534504 | F55: 0.007217950235 | G55: 0.8700955582 | H55: 2.95
B56: 4.7 | C56: =(B56-$C$2) -> 1.7 | D56: =NORMDIST(B56,$C$2,$C$3,0)/10 -> 0.009404907738 | E56: =_xlfn.WEIBULL.DIST(B56,$C$4,$C$6,0)/10 -> 0.006441697473 | F56: 0.006952614863 | G56: 0.8770481731 | H56: 3.05
B57: 4.8 | C57: =(B57-$C$2) -> 1.8 | D57: =NORMDIST(B57,$C$2,$C$3,0)/10 -> 0.00789501583 | E57: =_xlfn.WEIBULL.DIST(B57,$C$4,$C$6,0)/10 -> 0.006204897531 | F57: 0.006697033349 | G57: 0.8837452065 | H57: 3.15
B58: 4.9 | C58: =(B58-$C$2) -> 1.9 | D58: =NORMDIST(B58,$C$2,$C$3,0)/10 -> 0.006561581477 | E58: =_xlfn.WEIBULL.DIST(B58,$C$4,$C$6,0)/10 -> 0.005976802471 | F58: 0.006450847136 | G58: 0.8901960536 | H58: 3.25
B59: 5 | C59: =(B59-$C$2) -> 2 | D59: =NORMDIST(B59,$C$2,$C$3,0)/10 -> 0.005399096651 | E59: =_xlfn.WEIBULL.DIST(B59,$C$4,$C$6,0)/10 -> 0.005757092296 | F59: 0.006213710848 | G59: 0.8964097644 | H59: 3.35
B60: 5.1 | C60: =(B60-$C$2) -> 2.1 | D60: =NORMDIST(B60,$C$2,$C$3,0)/10 -> 0.004398359598 | E60: =_xlfn.WEIBULL.DIST(B60,$C$4,$C$6,0)/10 -> 0.005545458775 | F60: 0.005985291806 | G60: 0.9023950562 | H60: 3.45
B61: 5.2 | C61: =(B61-$C$2) -> 2.2 | D61: =NORMDIST(B61,$C$2,$C$3,0)/10 -> 0.003547459285 | E61: =_xlfn.WEIBULL.DIST(B61,$C$4,$C$6,0)/10 -> 0.005341605005 | F61: 0.005765269559 | G61: 0.9081603258 | H61: 3.55
B62: 5.3 | C62: =(B62-$C$2) -> 2.3 | D62: =NORMDIST(B62,$C$2,$C$3,0)/10 -> 0.002832703774 | E62: =_xlfn.WEIBULL.DIST(B62,$C$4,$C$6,0)/10 -> 0.005145244999 | F62: 0.005553335437 | G62: 0.9137136612 | H62: 3.65
B63: 5.4 | C63: =(B63-$C$2) -> 2.4 | D63: =NORMDIST(B63,$C$2,$C$3,0)/10 -> 0.002239453029 | E63: =_xlfn.WEIBULL.DIST(B63,$C$4,$C$6,0)/10 -> 0.004956103283 | F63: 0.005349192117 | G63: 0.9190628534 | H63: 3.75
B64: 5.5 | C64: =(B64-$C$2) -> 2.5 | D64: =NORMDIST(B64,$C$2,$C$3,0)/10 -> 0.001752830049 | E64: =_xlfn.WEIBULL.DIST(B64,$C$4,$C$6,0)/10 -> 0.004773914508 | F64: 0.005152553206 | G64: 0.9242154066 | H64: 3.85
B65: 5.6 | C65: =(B65-$C$2) -> 2.6 | D65: =NORMDIST(B65,$C$2,$C$3,0)/10 -> 0.001358296923 | E65: =_xlfn.WEIBULL.DIST(B65,$C$4,$C$6,0)/10 -> 0.004598423082 | F65: 0.004963142836 | G65: 0.9291785494 | H65: 3.95
B66: 5.7 | C66: =(B66-$C$2) -> 2.7 | D66: =NORMDIST(B66,$C$2,$C$3,0)/10 -> 0.001042093481 | E66: =_xlfn.WEIBULL.DIST(B66,$C$4,$C$6,0)/10 -> 0.004429382806 | F66: 0.004780695284 | G66: 0.9339592447 | H66: 4.05
B67: 5.8 | C67: =(B67-$C$2) -> 2.8 | D67: =NORMDIST(B67,$C$2,$C$3,0)/10 -> 0.0007915451583 | E67: =_xlfn.WEIBULL.DIST(B67,$C$4,$C$6,0)/10 -> 0.004266556533 | F67: 0.004604954593 | G67: 0.9385641993 | H67: 4.15
B68: 5.9 | C68: =(B68-$C$2) -> 2.9 | D68: =NORMDIST(B68,$C$2,$C$3,0)/10 -> 0.000595253242 | E68: =_xlfn.WEIBULL.DIST(B68,$C$4,$C$6,0)/10 -> 0.004109715834 | F68: 0.004435674216 | G68: 0.9429998735 | H68: 4.25
B69: 6 | C69: =(B69-$C$2) -> 3 | D69: =NORMDIST(B69,$C$2,$C$3,0)/10 -> 0.0004431848412 | E69: =_xlfn.WEIBULL.DIST(B69,$C$4,$C$6,0)/10 -> 0.003958640675 | F69: 0.004272616668 | G69: 0.9472724902 | H69: 4.35
B70: 6.1 | C70: =(B70-$C$2) -> 3.1 | D70: =NORMDIST(B70,$C$2,$C$3,0)/10 -> 0.0003266819056 | E70: =_xlfn.WEIBULL.DIST(B70,$C$4,$C$6,0)/10 -> 0.003813119112 | F70: 0.004115553195 | G70: 0.9513880434 | H70: 4.45
B71: 6.2 | C71: =(B71-$C$2) -> 3.2 | D71: =NORMDIST(B71,$C$2,$C$3,0)/10 -> 0.0002384088201 | E71: =_xlfn.WEIBULL.DIST(B71,$C$4,$C$6,0)/10 -> 0.003672946993 | F71: 0.003964263451 | G71: 0.9553523068 | H71: 4.55
B72: 6.3 | C72: =(B72-$C$2) -> 3.3 | D72: =NORMDIST(B72,$C$2,$C$3,0)/10 -> 0.0001722568939 | E72: =_xlfn.WEIBULL.DIST(B72,$C$4,$C$6,0)/10 -> 0.00353792767 | F72: 0.003818535193 | G72: 0.959170842 | H72: 4.65
B73: 6.4 | C73: =(B73-$C$2) -> 3.4 | D73: =NORMDIST(B73,$C$2,$C$3,0)/10 -> 0.0001232219168 | E73: =_xlfn.WEIBULL.DIST(B73,$C$4,$C$6,0)/10 -> 0.003407871723 | F73: 0.003678163976 | G73: 0.962849006 | H73: 4.75
B74: 6.5 | C74: =(B74-$C$2) -> 3.5 | D74: =NORMDIST(B74,$C$2,$C$3,0)/10 -> 8.72682695e-05 | E74: =_xlfn.WEIBULL.DIST(B74,$C$4,$C$6,0)/10 -> 0.003282596696 | F74: 0.003542952874 | G74: 0.9663919588 | H74: 4.85
B75: =B74+0.1 -> 6.6 | C75: =(B75-$C$2) -> 3.6 | D75: =NORMDIST(B75,$C$2,$C$3,0)/10 -> 6.119019301e-05 | E75: =_xlfn.WEIBULL.DIST(B75,$C$4,$C$6,0)/10 -> 0.00316192684 | F75: =E75/$E$269 -> 0.003412712198 | G75: 0.969804671 | H75: =B75-$F$6 -> 4.95
B76: 6.7 | C76: =(B76-$C$2) -> 3.7 | D76: =NORMDIST(B76,$C$2,$C$3,0)/10 -> 4.247802706e-05 | E76: =_xlfn.WEIBULL.DIST(B76,$C$4,$C$6,0)/10 -> 0.003045692867 | F76: 0.003287259233 | G76: =G75+F76 -> 0.9730919303 | H76: 5.05
B77: 6.8 | C77: =(B77-$C$2) -> 3.8 | D77: =NORMDIST(B77,$C$2,$C$3,0)/10 -> 2.919469258e-05 | E77: =_xlfn.WEIBULL.DIST(B77,$C$4,$C$6,0)/10 -> 0.002933731711 | F77: 0.00316641798 | G77: 0.9762583483 | H77: 5.15
B78: 6.9 | C78: =(B78-$C$2) -> 3.9 | D78: =NORMDIST(B78,$C$2,$C$3,0)/10 -> 1.986554714e-05 | E78: =_xlfn.WEIBULL.DIST(B78,$C$4,$C$6,0)/10 -> 0.002825886302 | F78: 0.00305001891 | G78: 0.9793083672 | H78: 5.25
B79: 7 | C79: =(B79-$C$2) -> 4 | D79: =NORMDIST(B79,$C$2,$C$3,0)/10 -> 1.338302258e-05 | E79: =_xlfn.WEIBULL.DIST(B79,$C$4,$C$6,0)/10 -> 0.002722005343 | F79: 0.002937898727 | G79: 0.9822462659 | H79: 5.35
B80: 7.1 | C80: =(B80-$C$2) -> 4.1 | D80: =NORMDIST(B80,$C$2,$C$3,0)/10 -> 8.926165718e-06 | E80: =_xlfn.WEIBULL.DIST(B80,$C$4,$C$6,0)/10 -> 0.002621943099 | F80: 0.002829900136 | G80: 0.985076166 | H80: 5.45
B81: 7.2 | C81: =(B81-$C$2) -> 4.2 | D81: =NORMDIST(B81,$C$2,$C$3,0)/10 -> 5.894306776e-06 | E81: =_xlfn.WEIBULL.DIST(B81,$C$4,$C$6,0)/10 -> 0.002525559191 | F81: 0.002725871627 | G81: 0.9878020377 | H81: 5.55
B82: 7.3 | C82: =(B82-$C$2) -> 4.3 | D82: =NORMDIST(B82,$C$2,$C$3,0)/10 -> 3.853519674e-06 | E82: =_xlfn.WEIBULL.DIST(B82,$C$4,$C$6,0)/10 -> 0.002432718403 | F82: 0.002625667256 | G82: 0.9904277049 | H82: 5.65
B83: 7.4 | C83: =(B83-$C$2) -> 4.4 | D83: =NORMDIST(B83,$C$2,$C$3,0)/10 -> 2.494247129e-06 | E83: =_xlfn.WEIBULL.DIST(B83,$C$4,$C$6,0)/10 -> 0.002343290488 | F83: 0.002529146447 | G83: 0.9929568514 | H83: 5.75
B84: 7.5 | C84: =(B84-$C$2) -> 4.5 | D84: =NORMDIST(B84,$C$2,$C$3,0)/10 -> 1.598374111e-06 | E84: =_xlfn.WEIBULL.DIST(B84,$C$4,$C$6,0)/10 -> 0.002257149986 | F84: 0.00243617379 | G84: 0.9953930251 | H84: 5.85
B85: 7.6 | C85: =(B85-$C$2) -> 4.6 | D85: =NORMDIST(B85,$C$2,$C$3,0)/10 -> 1.014085207e-06 | E85: =_xlfn.WEIBULL.DIST(B85,$C$4,$C$6,0)/10 -> 0.002174176052 | F85: 0.002346618853 | G85: 0.997739644 | H85: 5.95
B86: 7.7 | C86: =(B86-$C$2) -> 4.7 | D86: =NORMDIST(B86,$C$2,$C$3,0)/10 -> 6.369825179e-07 | E86: =_xlfn.WEIBULL.DIST(B86,$C$4,$C$6,0)/10 -> 0.002094252279 | F86: 0.002260355999 | G86: 1 | H86: 6.05
K93: =SUM(K11:K91) -> -1.070425108
D269: =SUM(D10:D266) -> 0.9984164338 | E269: =SUM(E10:E266) -> 0.9265143546 | F269: =SUM(F10:F266) -> 1

Sheet Normal Distribution Help
